[Event "CCT Chesscom Classic-D2 2024"]
[Site "Online"]
[Date "2024.05.10"]
[Round "1"]
[White "Rakhmanov, Aleksandr"]
[Black "Esipenko, Andrey"]
[Result "0-1"]
[ECO "E48"]
[WhiteElo "2614"]
[BlackElo "2704"]
[Annotator "RC"]
[PlyCount "146"]
[EventDate "2024.05.08"]
[EventType "k.o."]
[EventCountry "NET"]
[SourceTitle "playchess.com"]
[Source "ChessBase"]
[SourceQuality "1"]
[TimeControl "600+2"]

1. d4 {[%emt 0:00:12]} Nf6 {[%emt 0:00:04]} 2. c4 {[%emt 0:00:00]} e6 {[%emt 0:00:01]} 3. Nc3 {[%emt 0:00:00]} Bb4 {[%emt 0:00:00]} 4. e3 {[%emt 0:00:01]} O-O {[%emt 0:00:01]} 5. Bd3 {[%emt 0:00:17]} d5 {[%emt 0:00:04]} 6. Nge2 {[%emt 0:00:05]} dxc4 {[%emt 0:00:14]} 7. Bxc4 {[%emt 0:00:02]} Be7 {[%emt 0:00:00]} 8. e4 {[%emt 0:00:13]} c5 {[%emt 0:00:03]} 9. e5 {[%emt 0:00:11]} Nfd7 {[%emt 0:00:19]} 10. f4 {[%emt 0:00:10]} a6 {[%emt 0:01:33]} 11. O-O {[%emt 0:00:20]} b5 {[%emt 0:00:10]} 12. Bb3 {[%emt 0:00:16]} Bb7 {[%emt 0:00:25]} 13. Be3 {[%emt 0:00:13]} Nb6 {[%emt 0:01:01]} 14. dxc5 {[%emt 0:03:18]} N6d7 {[%emt 0:00:01]} 15. f5 {[%emt 0:01:50]} Bxc5 {[%emt 0:00:02]} 16. Nd4 {[%emt 0:00:56]} Nxe5 {[%emt 0:00:01]} 17. fxe6 {[%emt 0:00:08]} Nbc6 {[%emt 0:00:02]} 18. exf7+ {[%emt 0:00:08]} Kh8 {[%emt 0:00:00]} 19. Nf5 {[%emt 0:00:15]} Bxe3+ {[%emt 0:00:09]} 20. Nxe3 {[%emt 0:00:00]} Qg5 {[%emt 0:00:01]} 21. Qd2 {[%emt 0:00:58]} Rad8 {[%emt 0:00:54]} 22. Qf2 {[%emt 0:00:01]} Nd4 {[%emt 0:00:02]} 23. Bd5 {[%emt 0:00:08]} Bxd5 {[%emt 0:00:58]} 24. Nexd5 {[%emt 0:00:00]} Ndc6 {[%emt 0:00:01]} 25. Qf4 {[%emt 0:00:44]} Qh5 {[%emt 0:00:01]} 26. a3 {[%emt 0:00:12]} Rxf7 {[%emt 0:00:07]} 27. Qg3 {[%emt 0:00:01]} Rdf8 {[%emt 0:00:14]} 28. Rxf7 {[%emt 0:00:02]} Qxf7 {[%emt 0:00:00]} 29. h3 {[%emt 0:00:03]} h6 {[%emt 0:00:54]} 30. Re1 {[%emt 0:00:02]} Qa7+ {[%emt 0:00:02]} 31. Kh1 {[%emt 0:00:03]} Qf2 {[%emt 0:00:03]} 32. Qxf2 {[%emt 0:00:03]} Rxf2 {[%emt 0:00:01]} 33. Nc7 {[%emt 0:00:03]} Rxb2 {[%emt 0:00:16]} 34. Nxa6 {[%emt 0:00:03]} Rb3 {[%emt 0:00:07]} 35. Nb1 {[%emt 0:00:01]} Nd3 {[%emt 0:00:05]} 36. Rf1 {[%emt 0:00:01]} Nd4 {[%emt 0:00:08]} 37. Nc7 {[%emt 0:00:02]} Nc2 {[%emt 0:00:42]} 38. Ne6 {[%emt 0:00:10]} Nxa3 {[%emt 0:00:09]} 39. Nxa3 {[%emt 0:00:04]} Rxa3 {[%emt 0:00:00]} 40. Rf8+ {[%emt 0:00:01]} Kh7 {[%emt 0:00:00]} 41. Rf7 {[%emt 0:00:00]} Kg6 {[%emt 0:00:09]} 42. Rb7 {[%emt 0:00:01]} b4 {[%emt 0:00:06]} 43. Nd4 {[%emt 0:00:07]} Rc3 {[%emt 0:00:13]} 44. Rb6+ {[%emt 0:00:01]} Kg5 {[%emt 0:00:30]} 45. Kh2 {[%emt 0:00:01]} g6 {[%emt 0:00:25]} 46. Rb5+ {[%emt 0:00:04]} Kf6 {[%emt 0:00:08]} 47. Kg1 {[%emt 0:00:01]} Rc4 {[%emt 0:00:10]} 48. Nf3 {[%emt 0:00:03]} Ke6 {[%emt 0:00:15]} 49. Kf1 {[%emt 0:00:01]} Nf4 {[%emt 0:00:12]} 50. g3 {[%emt 0:00:02]} Nd5 {[%emt 0:00:03]} 51. Kf2 {[%emt 0:00:03]} Rc2+ {[%emt 0:00:01]} 52. Ke1 {[%emt 0:00:02]} Kd6 {[%emt 0:00:03]} 53. Nd2 {[%emt 0:00:02]} Rc1+ {[%emt 0:00:03]} 54. Kf2 {[%emt 0:00:02]} Rc2 {[%emt 0:00:05]} 55. Ke1 {[%emt 0:00:01]} Ke5 {[%emt 0:00:09]} 56. Nf3+ {[%emt 0:00:03]} Ke4 {[%emt 0:00:01]} 57. Nd2+ {[%emt 0:00:01]} Ke3 {[%emt 0:00:00]} 58. Nf1+ {[%emt 0:00:02]} Kd4 {[%emt 0:00:01]} 59. Nd2 {[%emt 0:00:00]} Rc3 {[%emt 0:00:04]} 60. Ke2 {[%emt 0:00:04]} Rxg3 {[%emt 0:00:08]} 61. Nf3+ {[%emt 0:00:01]} Kc4 {[%emt 0:00:02]} 62. Rb8 {[%emt 0:00:01]} Rxh3 {[%emt 0:00:03]} 63. Rc8+ {[%emt 0:00:02]} Kb3 {[%emt 0:00:04]} 64. Nd4+ {[%emt 0:00:01]} Kb2 {[%emt 0:00:02]} 65. Rc2+ {[%emt 0:00:02]} Ka3 {[%emt 0:00:00]} 66. Rc5 {[%emt 0:00:06]} Nc3+ {[%emt 0:00:02]} 67. Ke1 {[%emt 0:00:02]} Re3+ {[%emt 0:00:02]} 68. Kf1 {[%emt 0:00:01]} Rd3 {[%emt 0:00:02]} 69. Nc2+ {[%emt 0:00:01]} Kb3 {[%emt 0:00:01]} 70. Ne1 {[%emt 0:00:01]} Rd6 {[%emt 0:00:02]} 71. Rc8 {[%emt 0:00:02]} Ne4 {[%emt 0:00:02]} 72. Nf3 {[%emt 0:00:01]} Nd2+ {[%emt 0:00:00]} 73. Nxd2+ {[%emt 0:00:02]} Rxd2 {[%emt 0:00:00]} 0-1

[Event "CCT Chesscom Classic-D2 2024"]
[Site "Online"]
[Date "2024.05.10"]
[Round "1"]
[White "Rakhmanov, Aleksandr"]
[Black "Esipenko, Andrey"]
[Result "1/2-1/2"]
[ECO "A30"]
[WhiteElo "2614"]
[BlackElo "2704"]
[Annotator "TA"]
[PlyCount "41"]
[EventDate "2024.05.08"]
[EventType "k.o."]
[EventCountry "NET"]
[SourceTitle "playchess.com"]
[Source "ChessBase"]
[SourceQuality "1"]
[TimeControl "600+2"]

1. c4 {[%emt 0:00:11]} Nf6 {[%emt 0:00:09]} ({Predecessor:} 1... e5 2. Nc3 Nc6 3. g3 Bc5 4. Bg2 d6 5. e3 a6 6. Nge2 Ba7 7. d3 h5 8. h3 h4 9. g4 f5 10. gxf5 Bxf5 11. b4 Qd7 12. Rb1 Nf6 13. b5 axb5 14. Rxb5 {1-0 Xiong,J (2646)-Christiansen,J (2637) Titled Tuesday intern op 30th Apr Early blitz 2024 (8)}) 2. Nf3 {[%emt 0:00:02]} e6 {[%emt 0:00:01]} 3. e3 {[%emt 0:00:12]} d5 {[%emt 0:00:03]} 4. b3 {[%emt 0:00:01]} Be7 {[%emt 0:00:05]} 5. Bb2 {[%emt 0:00:02]} O-O {[%emt 0:00:02]} 6. Be2 {[%emt 0:00:10] A30: Symmetrical English: Double Fianchetto and Hedgehog.} b6 {[%emt 0:00:12]} 7. O-O {[%emt 0:00:29]} Bb7 {[%emt 0:00:06]} 8. Nc3 {[%emt 0:00:02]} c5 {[%emt 0:00:04]} 9. cxd5 {[%emt 0:00:05]} Nxd5 {[%emt 0:00:09]} 10. d4 {[%emt 0:00:28]} Nxc3 {[%emt 0:00:25]} 11. Bxc3 {[%emt 0:00:02]} Nd7 {[%emt 0:00:00]} 12. Bb2 {[%emt 0:00:32]} Rc8 {[%emt 0:00:07]} 13. Rc1 {[%emt 0:00:05]} Nf6 {[%emt 0:00:07]} 14. Ne5 {[%emt 0:00:22]} cxd4 {[%emt 0:00:15]} 15. Rxc8 {[%emt 0:01:34]} Qxc8 {[%emt 0:00:08]} 16. Bxd4 {[%emt 0:00:01]} Rd8 {[%emt 0:00:48]} 17. Qa1 {[%emt 0:00:09]} Ba3 {[%emt 0:00:38]} 18. Nc4 {[%emt 0:00:19]} Be7 {[%emt 0:00:02]} 19. Ne5 {[%emt 0:00:10]} Ba3 {[%emt 0:00:08]} 20. Nc4 {[%emt 0:00:02]} Be7 {[%emt 0:00:12] Check Result:0.00} 21. Ne5 {[%emt 0:00:02]} 1/2-1/2

[Event "CCT Chesscom Classic-D2 2024"]
[Site "Online"]
[Date "2024.05.10"]
[Round "1"]
[White "Martinez Alcantara, Jose Eduardo"]
[Black "So, Wesley"]
[Result "1-0"]
[ECO "C24"]
[WhiteElo "2612"]
[BlackElo "2757"]
[Annotator "TA"]
[PlyCount "101"]
[EventDate "2024.05.08"]
[EventType "k.o."]
[EventCountry "NET"]
[SourceTitle "playchess.com"]
[Source "ChessBase"]
[SourceQuality "1"]
[TimeControl "600+2"]

{[%evp 28,101,-30,-54,-56,-83,-93,-93,-64,-88,-83,-92,-92,-85,-78,-225,-21,-8,-8,-27,-25,-76,0,0,50,-220,-122,-106,-105,-149,-129,-113,0,-120,-120,-131,26,24,23,34,29,31,29,36,31,32,119,65,55,52,73,73,73,70,69,66,164,164,165,165,165,165,165,166,157,142,283,134,134,68,68,68,67,65,66,65]} 1. e4 {[%emt 0:00:02]} e5 {[%emt 0:00:46]} 2. Bc4 {[%emt 0:00:04]} Nf6 {[%emt 0:00:02]} 3. d3 {[%emt 0:00:01]} c6 {[%emt 0:00:01]} 4. Nf3 {[%emt 0:00:03]} d5 {[%emt 0:00:00]} 5. Bb3 {[%emt 0:00:01]} Bd6 {[%emt 0:00:06]} 6. Nc3 {[%emt 0:00:02]} O-O {[%emt 0:00:17] is more profitable than 6...dxe4 at the moment. C24: Bishop's Opening: 2...Nf6.} 7. Bg5 {[%emt 0:00:04]} d4 {[%emt 0:00:05]} 8. Ne2 {[%emt 0:00:02]} Nbd7 $5 {[%emt 0:00:27][%mdl 4] A promising side line.} 9. Ng3 {[%emt 0:00:18]} Nc5 {[%emt 0:00:30]} 10. O-O {[%emt 0:00:51]} h6 $146 {[%emt 0:00:18]} ({Predecessor:} 10... a5 11. c3 dxc3 12. bxc3 Nxb3 13. Qxb3 a4 14. Qc2 h6 15. Bd2 Re8 16. Nh4 Bf8 {1-0 Sikora Lerch,J (2395)-Gabriel,J (2315) Oberliga Wuerttemberg 9192 1991}) 11. Bd2 {[%emt 0:00:03]} a5 {[%emt 0:00:05]} 12. c3 {[%emt 0:00:39]} dxc3 {[%emt 0:07:14]} 13. Bxc3 {[%emt 0:00:39]} Re8 {[%emt 0:00:07]} 14. h3 {[%emt 0:00:04]} Nxb3 {[%emt 0:00:03]} 15. axb3 {[%emt 0:00:09]} c5 {[%emt 0:00:02]} 16. Nh2 {[%emt 0:00:14]} b6 {[%emt 0:00:02]} 17. Qf3 {[%emt 0:00:03]} Bf8 {[%emt 0:00:05]} 18. Qe3 {[%emt 0:00:13]} Ra7 {[%emt 0:00:03]} 19. f4 {[%emt 0:00:05]} exf4 {[%emt 0:00:00]} 20. Qxf4 {[%emt 0:00:00]} Bd6 {[%emt 0:00:05]} (20... Qxd3 $2 21. Rad1 $18) 21. Qf2 {[%emt 0:00:09]} (21. Qf3 $17) 21... Be5 $2 {[%emt 0:00:06]} (21... Qc7 $19 22. Be1 Rd8) 22. Bxe5 $11 {[%emt 0:00:09]} Rxe5 {[%emt 0:00:00]} 23. Nf3 {[%emt 0:00:01]} Re8 {[%emt 0:00:02]} 24. e5 {[%emt 0:00:28]} (24. Rad1 $11) 24... Nh7 {[%emt 0:00:02]} ({Black should play} 24... Nd7 $1 $17 {[%cal Rd7e5]} 25. Rae1 Nf8) 25. d4 $11 {[%emt 0:00:14]} Bb7 {[%emt 0:00:03] [#]} (25... cxd4 $11 26. Ne4 Bb7) 26. Nh4 $2 {[%emt 0:00:52][%mdl 8192] [#]} (26. Nf5 $1 $14 {stays ahead.}) 26... Qxd4 {[%emt 0:00:02]} (26... Qxh4 27. Qxf7+ (27. dxc5 $2 Bd5 $19) 27... Kh8 28. Qxe8+) (26... Ba6 $1 $19 27. Ngf5 Bxf1 28. Rxf1 cxd4) 27. Qxd4 {[%emt 0:00:07]} cxd4 {[%emt 0:00:00]} 28. Rad1 {[%emt 0:00:01]} Rxe5 {[%emt 0:00:02]} 29. Rxd4 {[%emt 0:00:01]} Nf6 {[%emt 0:00:01]} (29... Rd5 $17 30. Rfd1 Nf6) 30. Nhf5 {[%emt 0:00:05]} (30. Rxf6 $1 $11 gxf6 31. Rd8+ Kh7 32. Rd7) 30... Kh7 $17 {[%emt 0:00:03]} 31. Rd6 {[%emt 0:00:04]} Ne4 $2 {[%emt 0:00:02]} (31... Re6 $17 {...Rxd6 would now be deadly.} 32. Rfd1 Ra8) 32. Rd7 $1 $11 {[%emt 0:00:14]} Nxg3 {[%emt 0:00:10]} 33. Nxg3 {[%emt 0:00:01]} Rg5 {[%emt 0:00:01]} 34. Kh2 {[%emt 0:00:00]} Bxg2 $1 {[%emt 0:00:02]} 35. Rxa7 {[%emt 0:00:05]} Bxf1 {[%emt 0:00:01]} 36. Nxf1 {[%emt 0:00:00]} Kg6 {[%emt 0:00:03]} (36... Re5 $14) 37. Rc7 {[%emt 0:00:06]} (37. Nd2 $16) 37... Re5 $14 {[%emt 0:00:04]} 38. Rc6+ {[%emt 0:00:06]} f6 {[%emt 0:00:02]} 39. Rxb6 {[%emt 0:00:12]} Re2+ {[%emt 0:00:01]} 40. Kg3 {[%emt 0:00:00]} Rxb2 {[%emt 0:00:00]} 41. Rb5 $1 {[%emt 0:00:01]} f5 {[%emt 0:00:04] [#]} (41... h5 $14) 42. Ne3 $1 $18 {[%emt 0:00:06]} Ra2 {[%emt 0:00:02]} 43. Rb6+ {[%emt 0:00:42]} Kh7 {[%emt 0:00:04]} 44. Nxf5 {[%emt 0:00:17]} a4 {[%emt 0:00:01]} 45. Rb7 {[%emt 0:00:04]} Kg6 {[%emt 0:00:02]} 46. Ne7+ {[%emt 0:01:01]} Kh5 {[%emt 0:00:01]} (46... Kh7 $16) 47. Nd5 {[%emt 0:00:23]} (47. Rb5+ $18 {is the precise move to win.} g5 48. Nd5) 47... Ra3 $16 {[%emt 0:00:02]} 48. Rxg7 {[%emt 0:01:26]} (48. Nf4+ $16 Kg5 49. Ne6+ (49. Rxg7+ Kf5 $18) 49... Kf6 50. Nc5 (50. Nxg7 $2 {perishes.} Rxb3+ 51. Rxb3 axb3 $19) 50... axb3 51. Rb6+ (51. Rxb3 Ra1 $18) (51. Nxb3 g5 $16) 51... Kg5 52. Rxb3 (52. Nxb3 g6 $18)) 48... Rxb3+ $14 {[%emt 0:00:00]} 49. Kf4 {[%emt 0:00:00]} Rb5 {[%emt 0:00:12]} 50. Ke4 {[%emt 0:00:19]} Kh4 {[%emt 0:00:01]} 51. Nf4 {[%emt 0:00:11]} 1-0